bitfinex/quotes_ETHUSD_20240703
["timestamp","ask_amount","ask_price","bid_price","bid_amount"]
[1719977127654,8.9215,3362.9,3362.0,1.4872]
[1719977127816,1.77890514,3362.8,3362.0,1.4872]
[1719977128153,0.03439135,3362.7,3362.0,1.4872]
[1719977128852,0.03439135,3362.7,3361.4,1.48744]
[1719977128853,6.8359,3362.6,3361.4,1.48743]
[1719977129015,6.8359,3362.6,3360.8,14.5812]
[1719977129016,8.9215,3362.5,3361.5,1.48742]
[1719977129211,9.78641965,3362.5,3361.5,1.48742]
[1719977129461,0.03439135,3362.4,3361.5,1.48742]
[1719977129821,0.03439135,3362.4,3361.6,1.48737]
[1719977130052,8.9215,3362.3,3361.4,1.48745]
[1719977130222,0.98120644,3362.2,3361.4,1.48745]
[1719977130656,0.03439135,3362.1,3361.4,1.48745]
[1719977132020,0.03439135,3362.1,3361.5,1.88549383]
[1719977132486,8.9215,3362.3,3361.5,1.88549383]
[1719977132655,0.03416158,3362.0,3361.5,1.88549383]
[1719977132826,0.03416158,3362.0,3361.6,0.18854938]
[1719977133038,8.9215,3362.3,3361.6,0.18854938]
[1719977133246,0.03416158,3361.9,3361.6,0.18854938]
[1719977133455,8.9215,3362.3,3361.6,0.18854938]
[1719977133805,8.9215,3362.3,3361.7,1.48733]
[1719977133935,0.03416158,3362.2,3361.7,1.48733]
[1719977135237,0.03416158,3362.2,3361.7,1.83751794]
[1719977135438,0.03416158,3362.2,3361.9,1.826]
[1719977135633,8.9215,3362.3,3361.9,1.826]
[1719977135839,0.03422305,3362.2,3361.9,1.826]
[1719977136088,0.03422305,3362.2,3362.0,0.0594827]
[1719977136374,8.9215,3362.3,3362.1,0.18854827]
[1719977136773,0.03422305,3362.2,3362.1,0.18854827]
[1719977136989,8.9215,3362.3,3362.1,0.18854827]
[1719977137511,0.03422305,3362.2,3362.1,0.18854827]
[1719977137782,8.9215,3362.3,3362.1,0.18854827]
[1719977138139,8.72577318,3362.3,3362.1,0.18854827]
[1719977138342,7.98577318,3362.3,3362.1,7.42542654]
[1719977138543,7.98577318,3362.3,3362.2,3.92514265]
[1719977138853,7.48,3363.3,3362.2,3.92514265]
[1719977139064,7.2699,3363.6,3362.9,1.826]
[1719977140465,7.2699,3363.6,3362.5,1.826]
[1719977140664,7.99689,3363.6,3362.5,2.40111427]
[1719977141807,7.2699,3363.6,3362.6,0.05946957]
[1719977141969,7.4112,3364.1,3362.9,1.826]
[1719977142816,0.51488502,3364.0,3362.9,1.826]
[1719977143106,7.4112,3364.1,3362.9,1.826]
[1719977143317,0.92679453,3364.0,3362.9,1.826]
[1719977144910,0.92679453,3364.0,3362.1,7.1774]
[1719977144911,3.138,3363.7,3362.1,7.1774]
[1719977145111,13.02416668,3363.6,3361.4,7.2773]
[1719977145396,1.45105767,3363.5,3361.7,1.826]
[1719977145622,1.06504712,3363.4,3361.7,1.826]
[1719977145913,0.54844723,3363.3,3361.7,1.826]
[1719977146113,0.54844723,3363.3,3361.5,0.72773]
[1719977146114,0.51504712,3363.2,3361.8,0.05948288]
[1719977146269,0.55,3363.4,3362.0,1.826]
[1719977146468,1.79561962,3363.3,3362.0,2.01454829]
[1719977146713,0.51504048,3363.2,3362.0,2.01454829]
[1719977147090,0.03340011,3363.1,3362.0,2.01454829]
[1719977147670,0.03340011,3363.1,3362.1,0.0594828]
[1719977148485,0.03340011,3363.1,3362.0,2.01454829]
[1719977148694,0.03340011,3363.1,3362.1,0.26093357]
[1719977149176,7.3347,3363.6,3362.4,1.826]
[1719977149415,0.03340011,3363.0,3362.4,1.826]
[1719977149571,7.3347,3363.6,3362.4,1.826]
[1719977149774,0.03340011,3362.9,3362.4,1.826]
[1719977150016,7.3347,3363.6,3361.9,3.0]
[1719977150174,7.3347,3363.6,3362.0,1.826]
[1719977150175,0.51506623,3363.5,3362.0,1.826]
[1719977150377,7.92126623,3363.4,3362.0,1.826]
[1719977150579,1.60783786,3363.3,3362.0,1.826]
[1719977150805,0.51506623,3363.2,3362.0,1.826]
[1719977151415,0.03333601,3363.1,3362.0,1.826]
[1719977152480,0.51506978,3363.0,3362.0,1.826]
[1719977152682,1.09277163,3363.3,3362.0,1.826]
[1719977152883,1.54694396,3363.2,3362.0,1.826]
[1719977153102,0.51505579,3363.1,3362.0,1.826]
[1719977153301,0.99855216,3363.2,3362.0,1.826]
[1719977153491,0.54839226,3363.1,3362.0,1.826]
[1719977153692,0.03333601,3363.1,3362.0,1.826]
[1719977154414,0.5150682,3363.0,3362.0,1.826]
[1719977154623,0.03333601,3363.1,3362.0,1.826]
[1719977154624,0.15469564,3362.9,3362.0,1.826]
[1719977155152,7.37552902,3362.8,3361.6,4.826]
[1719977155305,6.86043601,3362.8,3361.6,4.826]
[1719977156142,6.86043601,3362.8,3362.0,1.826]
[1719977156344,6.86043601,3362.8,3362.0,2.0086]
[1719977158426,0.03333601,3362.8,3362.0,2.0086]
[1719977158636,0.03333601,3362.8,3362.4,1.826]
[1719977158817,7.0919,3363.2,3362.4,1.826]
[1719977159027,0.03330665,3362.7,3362.4,1.826]
[1719977159235,7.0919,3363.2,3362.5,0.1826]
[1719977159457,0.03330665,3362.6,3362.5,0.1826]
[1719977159607,7.0919,3363.2,3362.5,0.1826]
[1719977160253,0.03330665,3363.1,3362.5,0.1826]
[1719977160958,0.03330665,3363.1,3362.0,2.0086]
[1719977162006,0.03330665,3363.1,3362.0,1.826]
[1719977163739,6.8394,3363.0,3361.6,3.0]
[1719977163952,6.87257312,3363.0,3361.6,1.826]
[1719977164149,6.87257312,3363.0,3361.6,4.826]
[1719977168049,0.03317312,3363.0,3362.1,1.826]
[1719977168253,0.03317312,3363.0,3362.2,0.1826]
[1719977168555,0.03316779,3362.9,3362.2,0.1826]
[1719977169050,7.0784,3362.8,3362.2,0.1826]
[1719977169254,7.11156779,3362.8,3362.2,0.1826]
[1719977169947,0.03316779,3362.8,3362.2,0.1826]
[1719977170144,0.03316779,3362.8,3362.3,0.20086]
[1719977170319,7.019,3363.2,3362.3,0.20086]
[1719977170520,0.03314642,3362.7,3362.3,0.20086]
[1719977170744,7.019,3363.2,3362.3,0.20086]
[1719977170930,0.03314642,3362.6,3362.1,1.826]
[1719977171141,7.019,3363.2,3362.1,1.826]
[1719977171349,0.03314642,3362.5,3362.1,1.826]
[1719977171551,7.019,3363.2,3362.1,1.826]
[1719977171747,0.03314642,3362.4,3362.1,1.826]
[1719977171953,7.48,3363.0,3362.2,0.1826]
[1719977172450,0.03314642,3362.9,3362.2,0.1826]
[1719977173962,6.927,3362.8,3362.0,1.826]
[1719977174930,0.51507567,3362.7,3362.0,1.826]
[1719977175265,6.927,3362.8,3362.0,1.826]
[1719977175432,0.51507226,3362.7,3362.0,1.826]
[1719977175631,6.927,3362.8,3362.0,1.826]
[1719977175827,6.927,3362.8,3362.0,2.0086]
[1719977177437,6.927,3362.8,3362.0,1.826]
[1719977177643,0.51506306,3362.7,3362.0,1.826]
[1719977177988,6.927,3362.8,3362.0,1.826]
[1719977178271,0.51507043,3362.7,3362.0,1.826]
[1719977178474,6.927,3362.8,3362.0,1.826]
[1719977178626,0.03317847,3362.6,3362.0,1.826]
[1719977178846,6.927,3362.8,3362.0,1.826]
[1719977179045,0.51507165,3362.7,3362.0,1.826]
[1719977179294,8.3677,3362.8,3362.0,1.826]
[1719977179459,0.51504639,3362.7,3362.0,1.826]
[1719977179664,6.927,3362.8,3362.0,1.826]
[1719977179863,6.927,3362.8,3362.1,0.1826]
[1719977180294,0.03318114,3362.7,3362.1,0.1826]
[1719977182508,0.03318114,3362.7,3362.1,0.2420807]
[1719977183507,0.03318114,3362.7,3362.1,0.24208068]
[1719977184291,0.03318114,3362.7,3362.1,7.0826]
[1719977184496,0.03318114,3362.7,3362.2,0.89086]
[1719977184699,7.48,3363.0,3362.2,0.89086]
[1719977184853,0.03318114,3362.6,3362.2,0.89086]
[1719977185054,0.03318114,3362.6,3362.4,1.826]
[1719977185255,7.48,3363.0,3362.4,1.826]
[1719977185878,0.03324524,3362.9,3362.4,1.826]
[1719977187636,7.0322,3363.2,3362.4,1.826]
[1719977187776,0.03324524,3362.8,3362.4,1.826]
[1719977187974,7.0322,3363.2,3362.4,1.826]
[1719977188309,0.54822465,3363.1,3362.4,1.826]
[1719977188512,0.03324524,3363.1,3362.4,1.826]
[1719977189427,0.03324524,3363.1,3362.4,2.50477971]
[1719977192809,7.4363,3363.5,3362.4,2.50477971]
[1719977192987,0.51497232,3363.4,3362.4,2.50477971]
[1719977193186,0.51497232,3363.4,3362.5,0.33956397]
[1719977193187,0.51497232,3363.3,3362.5,0.33956397]
[1719977193431,0.51497332,3363.2,3362.5,0.33956397]
[1719977193598,7.4363,3363.5,3362.5,0.33956397]
[1719977193781,0.03329331,3363.1,3362.5,0.33956397]
[1719977193986,7.4363,3363.5,3362.5,0.33956397]
[1719977194181,0.03329331,3363.0,3362.5,0.33956397]
[1719977194410,7.4363,3363.5,3362.5,0.33956397]
[1719977194717,0.51495447,3363.4,3362.5,0.33956397]
[1719977194914,0.54824778,3363.3,3362.5,0.33956397]
[1719977195119,0.03329331,3363.3,3362.5,0.33956397]
[1719977195326,7.4363,3363.5,3362.5,0.33956397]
[1719977195327,0.51497327,3363.2,3362.5,0.33956397]
[1719977195497,0.03329331,3363.1,3362.6,0.28443437]
[1719977195699,7.4363,3363.5,3362.4,1.826]
[1719977196004,0.5482443,3363.4,3362.4,1.826]
[1719977196182,0.51495099,3363.3,3362.4,1.826]
[1719977196378,0.03329331,3363.4,3362.4,1.826]
[1719977196694,0.03329331,3363.3,3362.4,1.826]
[1719977197617,7.4363,3363.5,3362.4,1.826]
[1719977197861,7.4363,3363.5,3362.5,0.05947146]
[1719977197862,0.03329331,3363.2,3362.5,0.05947146]
[1719977198019,7.4363,3363.5,3362.5,0.05947146]
[1719977198221,0.03329331,3363.1,3362.5,0.05947146]
[1719977198565,0.03329331,3363.0,3362.6,0.18854715]
[1719977198862,0.03329331,3363.0,3362.7,7.34936982]
[1719977199023,7.48,3363.7,3362.8,0.05946735]
[1719977199218,0.03333871,3362.9,3362.8,0.05946735]
[1719977199459,7.48,3363.7,3362.7,7.2899]
[1719977199617,1.98449804,3363.6,3362.7,7.2899]
[1719977199822,0.51494804,3363.5,3362.7,7.2899]
[1719977200042,0.51494804,3363.4,3362.7,7.2899]
[1719977200264,1.46955,3363.6,3362.7,7.2899]
[1719977200432,0.03333871,3363.3,3362.7,7.2899]
[1719977200762,0.03333871,3363.2,3362.7,8.20149]
[1719977201053,0.03333871,3363.2,3362.7,7.2899]
[1719977201265,7.48,3363.7,3362.7,7.2899]
[1719977201450,0.03333871,3363.1,3362.7,7.2899]
[1719977201638,7.48,3363.7,3362.7,7.2899]
[1719977201851,0.03333871,3363.0,3362.7,7.2899]
[1719977202052,7.48,3363.7,3362.8,0.72899]
[1719977202267,0.03333871,3362.9,3362.7,7.2899]
[1719977202555,7.48,3363.7,3362.7,7.2899]
[1719977202856,0.54827382,3363.6,3362.7,7.2899]
[1719977203064,0.51493511,3363.5,3362.7,7.2899]
[1719977203621,0.03333871,3363.4,3362.7,7.2899]
[1719977203856,0.03333871,3363.4,3362.8,0.72899]
[1719977204173,0.03333871,3363.3,3362.4,1.826]
[1719977204352,0.51494768,3363.2,3362.2,7.4064]
[1719977204525,0.03333337,3363.1,3362.2,7.4064]
[1719977204726,7.1199,3363.3,3362.2,7.4064]
[1719977205047,0.54833958,3363.2,3362.3,0.92324]
[1719977205256,0.51500621,3363.1,3362.3,0.92324]
[1719977205621,7.1199,3363.3,3362.3,0.92324]
[1719977205821,0.03333337,3363.0,3362.3,0.92324]
[1719977206047,0.03330399,3363.2,3362.4,0.832964]
[1719977206231,7.1199,3363.3,3362.4,0.832964]
[1719977206452,0.03330399,3363.1,3362.2,7.4064]
[1719977206626,7.1199,3363.3,3362.2,7.4064]
[1719977206825,0.03330399,3363.0,3362.2,7.4064]
[1719977207073,7.1199,3363.3,3362.2,7.4064]
[1719977207362,0.5149975,3363.2,3362.2,7.4064]
[1719977207522,0.5149975,3363.1,3362.3,0.92324]
[1719977207734,7.1199,3363.3,3362.3,0.92324]
[1719977207935,0.54831393,3363.2,3362.2,7.4064]
[1719977208176,0.51500994,3363.1,3361.9,1.190947]
[1719977208474,7.4879,3363.0,3361.9,1.190947]
[1719977208668,1.37369527,3362.9,3361.9,1.190947]
[1719977208872,0.51507388,3362.8,3361.8,7.385]
[1719977209044,0.5150822,3362.7,3361.8,7.385]
[1719977209234,0.5150822,3362.6,3361.8,7.385]
[1719977209434,0.5150822,3362.6,3361.9,1.2211]
[1719977209662,0.85862139,3362.9,3361.9,1.2211]
[1719977209868,0.03322653,3362.5,3361.9,1.2211]
[1719977210067,0.85862139,3362.9,3361.9,1.2211]
[1719977210264,0.03322653,3362.4,3361.9,1.2211]
[1719977210468,0.85862139,3362.9,3362.0,1.04321]
[1719977210631,0.03322653,3362.3,3361.8,7.385]
[1719977210843,2.08972382,3362.8,3361.8,7.385]
[1719977210844,0.85862139,3362.9,3361.8,7.385]
[1719977211043,0.03322653,3362.2,3361.8,7.385]
[1719977211245,0.85862139,3362.9,3361.8,7.385]
[1719977211550,2.12290505,3362.8,3361.8,7.385]
[1719977211746,2.08966498,3362.7,3361.8,8.6061]
[1719977211970,0.85862139,3362.9,3361.8,8.6061]
[1719977212208,0.03322653,3362.6,3361.8,8.6061]
[1719977212336,0.85862139,3362.9,3361.8,8.6061]
[1719977212533,2.12246976,3362.8,3361.8,8.6061]
[1719977212738,1.55802652,3362.7,3361.9,1.34321]
[1719977212939,1.55802652,3362.7,3361.8,7.385]
[1719977213169,0.03322653,3362.6,3361.8,7.385]
[1719977213357,0.03322653,3362.6,3362.1,1.826]
[1719977213568,7.48,3363.0,3362.1,1.826]
[1719977213769,0.03322653,3362.5,3362.1,1.826]
[1719977213950,7.48,3363.0,3362.2,0.1826]
[1719977214149,0.03322653,3362.9,3362.2,0.1826]
[1719977214566,0.03322653,3362.9,3361.9,1.826]
[1719977215384,0.03322653,3362.9,3362.3,1.826]
[1719977216873,0.03322653,3362.9,3362.4,6.847]
[1719977217587,0.03322653,3362.9,3362.7,1.826]
[1719977217952,7.48,3363.6,3362.7,1.826]
[1719977218147,7.0165,3363.7,3362.7,1.826]
[1719977218148,1.48276169,3363.5,3362.7,1.826]
[1719977218353,0.03311169,3363.5,3362.7,1.826]
[1719977218796,7.0165,3363.7,3362.7,1.826]
[1719977219093,0.03318646,3363.4,3362.7,1.826]
[1719977219298,7.0165,3363.7,3362.7,1.826]
[1719977219494,0.03318646,3363.3,3362.7,1.826]
[1719977219792,0.03318646,3363.2,3362.8,0.1826]
[1719977220175,7.0165,3363.7,3362.8,0.1826]
[1719977220479,0.03318646,3363.1,3362.7,1.826]
[1719977220682,7.0165,3363.7,3362.7,1.826]
[1719977220991,7.2296,3363.1,3361.6,7.40420566]
[1719977221198,7.2296,3363.1,3361.9,1.826]
[1719977221356,7.2296,3363.1,3362.0,0.1826]
[1719977221357,0.51503062,3363.0,3362.0,0.1826]
[1719977221555,0.54832124,3362.9,3362.3,1.826]
[1719977221756,0.03329062,3362.9,3362.3,1.826]
[1719977221979,7.2296,3363.5,3362.3,1.826]
[1719977222295,0.03329062,3362.8,3362.3,1.826]
[1719977222454,7.2296,3363.5,3362.3,1.826]
[1719977222455,7.2296,3363.5,3362.4,0.89334]
[1719977222655,0.03329062,3362.7,3362.3,1.826]
[1719977222892,7.2296,3363.5,3362.3,1.826]
[1719977223120,0.03200875,3363.4,3362.3,1.826]
[1719977223330,0.54699635,3363.4,3362.3,1.826]
[1719977223536,0.5149876,3363.3,3362.3,1.826]
[1719977223737,7.2296,3363.5,3362.4,0.89334]
[1719977223944,0.54698283,3363.4,3362.4,0.89334]
[1719977224158,0.03200875,3363.4,3362.4,0.89334]
[1719977224453,0.51497439,3363.3,3362.4,0.89334]
[1719977224662,0.03200875,3363.4,3362.4,0.89334]
[1719977224833,0.03172224,3363.2,3362.4,0.89334]
[1719977225151,0.03172224,3363.1,3362.5,0.271934]
[1719977225451,7.2296,3363.5,3362.5,0.271934]
[1719977225655,0.03172224,3363.0,3362.4,0.89334]
[1719977225815,7.2296,3363.5,3362.4,0.89334]
[1719977226017,0.03172224,3362.9,3362.4,0.89334]
[1719977226220,3.138,3363.5,3362.0,0.1826]
[1719977226418,0.03172758,3362.8,3361.8,7.1652]
[1719977226642,0.55,3363.1,3361.8,7.1652]
[1719977226857,0.03175165,3362.7,3361.8,7.1652]
[1719977227043,0.55,3363.1,3361.9,0.74620057]
[1719977227354,0.54682296,3363.0,3361.9,0.74620057]
[1719977227542,0.51507131,3362.9,3361.9,0.74620057]
[1719977227776,0.54675343,3362.8,3361.9,2.63168509]
[1719977227951,0.03168212,3362.8,3361.9,2.63168509]
[1719977228260,3.0,3363.3,3362.0,0.97968851]
[1719977228422,0.03168212,3362.7,3362.0,0.97968851]
[1719977228621,0.51502165,3363.2,3362.0,0.97968851]
[1719977229129,0.03166875,3363.1,3362.0,0.97968851]
[1719977230463,0.03166875,3363.1,3362.1,0.05947862]
[1719977230639,0.03166875,3363.1,3362.4,1.826]
[1719977230841,7.48,3363.6,3362.5,0.05947214]
[1719977231034,0.0307348,3363.0,3362.6,6.8562]
[1719977231232,7.3225,3363.8,3362.7,0.05947118]
[1719977231436,0.0307348,3362.9,3362.6,6.8562]
[1719977231659,7.48,3363.5,3362.7,0.86822]
[1719977232126,0.03078561,3363.4,3362.7,0.86822]
[1719977232725,7.4171,3363.3,3362.1,6.8722]
[1719977233029,7.4171,3363.3,3362.2,1.826]
[1719977233030,0.03084443,3363.2,3362.2,1.826]
[1719977234566,0.03084443,3363.2,3362.3,0.05947067]
[1719977235737,7.48,3363.5,3362.3,0.05947067]
[1719977235936,0.51496668,3363.4,3362.3,0.05947067]
[1719977236126,0.03097013,3363.4,3362.4,0.87576707]
[1719977236331,0.03097013,3363.4,3362.5,0.05947067]
[1719977237425,0.03097013,3363.4,3362.7,6.9452]
[1719977241266,7.48,3363.9,3362.8,0.05946763]
[1719977241471,0.03100756,3363.3,3362.8,0.05946763]
[1719977241650,4.49271053,3364.1,3362.8,0.05946763]
[1719977241848,0.03100756,3363.2,3362.8,0.05946763]
[1719977242048,1.06491735,3364.0,3362.8,0.05946763]
[1719977242049,7.48,3363.7,3363.1,0.759]
[1719977242246,8.283,3363.7,3363.3,0.759]
[1719977243278,0.51494863,3363.6,3363.1,0.759]
[1719977243476,0.51494863,3363.5,3363.1,0.759]
[1719977243783,8.283,3363.7,3363.3,0.759]
[1719977246472,7.48,3363.7,3363.3,0.759]
[1719977246777,4.49271053,3364.1,3363.3,0.759]
[1719977247074,1.06491432,3364.0,3363.3,0.759]
[1719977247233,0.51491432,3363.9,3363.3,0.759]
[1719977247435,7.281492,3364.5,3363.7,0.759]
[1719977247761,7.281492,3364.5,3363.8,0.759]
[1719977247762,0.51489196,3364.4,3363.8,0.759]
[1719977247938,0.51489196,3364.3,3363.8,0.759]
[1719977248138,0.51489196,3364.2,3363.8,0.759]
[1719977248371,2.91014915,3364.4,3363.8,0.759]
[1719977248538,1.22972413,3364.3,3363.8,0.759]
[1719977248738,0.51484205,3364.2,3363.8,0.759]
[1719977248938,0.71488208,3364.3,3363.4,7.2387]
[1719977249190,0.51483375,3364.2,3363.7,0.759]
[1719977249381,0.117292,3364.5,3363.5,0.05945734]
[1719977249586,0.117292,3364.5,3364.1,0.759]
[1719977250073,0.117292,3364.5,3364.3,0.759]
[1719977250237,0.117292,3364.5,3363.4,7.2387]
[1719977250443,0.117292,3364.5,3364.0,0.759]
[1719977250673,0.117292,3364.5,3363.4,7.2387]
[1719977250839,0.117292,3364.5,3364.0,0.759]
[1719977251279,0.117292,3364.5,3364.2,0.759]
[1719977251476,0.117292,3364.5,3364.0,0.759]
[1719977251651,0.117292,3364.5,3363.4,7.2387]
[1719977251652,0.51482425,3364.4,3364.2,0.759]
[1719977251859,0.117292,3364.5,3364.2,0.759]
[1719977252154,1.3226482,3364.5,3364.2,0.759]
[1719977252345,0.03030275,3364.4,3364.2,0.759]
[1719977252980,0.03030275,3364.4,3363.4,7.2387]
[1719977253281,0.03030275,3364.4,3364.1,0.759]
[1719977253849,0.03030275,3364.4,3363.4,7.2387]
[1719977254092,6.8368,3364.2,3363.0,7.2155]
[1719977254271,6.8368,3364.2,3363.8,0.759]
[1719977254459,0.03030275,3364.1,3363.8,0.759]
[1719977256943,0.03030275,3364.1,3363.1,3.0]
[1719977257145,0.68671028,3364.0,3363.6,0.759]
[1719977257579,0.57928464,3363.9,3363.3,0.759]
[1719977257789,1.09421558,3363.9,3363.3,0.759]
[1719977257998,0.51494553,3363.8,3363.3,0.759]
[1719977258171,7.63894553,3363.7,3363.3,0.759]
[1719977258369,1.33676846,3363.6,3363.3,0.759]
[1719977258704,0.82182302,3363.6,3363.3,0.759]
[1719977259054,0.82182302,3363.6,3363.5,0.759]
[1719977259298,1.33677085,3363.6,3363.5,0.759]
[1719977259457,1.3367711,3363.6,3363.5,0.759]
[1719977259663,0.82182302,3363.6,3363.5,0.759]
[1719977260713,0.82182302,3363.6,3362.0,7.39]
[1719977260714,7.0276,3363.5,3362.0,7.384]
[1719977260863,0.759,3363.2,3362.2,0.759]
[1719977261062,0.51503504,3363.1,3362.4,0.759]
[1719977261257,0.55,3363.0,3362.4,0.759]
[1719977261516,0.51503504,3362.9,3362.4,0.759]
[1719977261995,0.51503504,3362.9,3362.0,7.384]
[1719977262193,3.0,3363.4,3362.1,0.9207]
[1719977262373,1.06506484,3363.3,3362.1,0.9207]
[1719977262568,0.51506484,3363.2,3362.1,0.9207]
[1719977262896,0.51506484,3363.2,3362.1,0.98018035]
[1719977263082,0.55,3363.1,3362.1,0.9207]
[1719977263277,0.67657132,3363.0,3362.0,7.384]
[1719977263595,0.16150648,3363.0,3362.0,7.384]
[1719977263801,0.51508502,3362.9,3362.0,7.384]
[1719977264094,4.48659,3363.4,3362.0,7.384]
[1719977264311,1.06507235,3363.3,3362.0,7.384]
[1719977264461,0.51507235,3363.2,3362.0,7.384]
[1719977264666,0.55,3363.1,3362.0,7.384]
[1719977264899,0.55,3363.1,3362.1,0.9207]
[1719977265192,0.55,3363.3,3362.1,0.98018029]
[1719977265565,0.51504485,3363.2,3362.1,0.98018029]
[1719977265767,0.55,3363.3,3362.1,0.98018029]
[1719977266003,0.51503615,3363.2,3362.1,0.9207]
[1719977266218,0.92153977,3363.1,3362.1,0.9207]
[1719977266417,0.40650362,3363.1,3362.0,7.384]
[1719977266709,0.51509181,3363.0,3362.0,7.384]
[1719977266915,0.02911618,3363.0,3362.0,7.384]
[1719977267597,0.57911618,3363.0,3362.0,7.384]
[1719977267786,0.73267816,3363.0,3362.0,7.384]
[1719977269527,0.02911618,3363.0,3362.0,7.384]
[1719977269676,0.57911618,3363.0,3362.0,7.384]
[1719977279441,7.1044,3362.9,3361.7,6.8799]
[1719977279625,0.55,3362.8,3361.7,6.8799]
[1719977279826,1.35900198,3362.8,3361.7,7.61350167]
[1719977280026,0.02867776,3362.7,3361.7,7.61350167]
[1719977280635,0.02867776,3362.7,3361.6,0.29049765]
[1719977280874,7.0768,3362.6,3361.4,7.0095]
[1719977281071,0.55,3362.5,3361.4,7.0095]
[1719977281671,0.02865102,3362.4,3361.4,7.0095]
[1719977281878,7.2504,3362.2,3361.1,6.8429]
[1719977282653,0.02857612,3362.1,3361.1,6.8429]
[1719977283631,0.57857612,3362.1,3361.1,6.8429]
[1719977283841,0.85945212,3362.0,3361.1,6.8429]
[1719977284021,0.02762358,3361.9,3361.1,6.8429]
[1719977284234,0.57762358,3361.9,3360.7,7.3557]
[1719977284443,0.57762358,3361.9,3360.8,3.0]
[1719977284627,0.57762358,3361.9,3360.9,1.1215152]
[1719977285880,0.02762358,3361.9,3361.5,0.76]
[1719977286246,0.02747643,3361.8,3361.5,0.76]
[1719977286552,0.55,3362.1,3361.5,0.76]
[1719977286749,0.0272196,3361.7,3361.5,0.76]
[1719977286964,0.55,3362.1,3361.5,0.76]
[1719977287137,0.0272196,3361.6,3361.3,6.8804]
[1719977287342,1.40659451,3362.1,3361.5,0.76]
[1719977288727,1.40659451,3362.1,3361.3,6.8804]
[1719977289063,1.40659451,3362.1,3361.7,0.76]
[1719977291071,7.4591,3362.6,3361.9,0.76]
[1719977291234,1.06514899,3362.5,3361.9,0.76]
[1719977291574,0.51514899,3362.4,3361.9,0.76]
[1719977291757,0.55,3362.5,3361.9,0.76]
[1719977291960,1.3160599,3362.4,3361.9,0.76]
[1719977292144,0.51515552,3362.3,3361.9,0.76]
[1719977292344,0.80091,3362.4,3361.9,0.76]
[1719977292867,0.51514937,3362.3,3361.9,0.76]
[1719977293065,0.80091,3362.4,3361.9,0.76]
[1719977294350,14.833,3363.0,3362.0,7.2327]
[1719977294669,7.48,3363.4,3362.9,0.76]
[1719977294967,0.51500488,3363.3,3362.9,0.76]
[1719977295167,7.353,3363.5,3362.0,7.2327]
[1719977295168,1.30180445,3363.2,3362.0,7.2327]
[1719977295480,7.353,3363.5,3362.7,0.76]
[1719977295664,0.51502033,3363.4,3362.7,0.76]
[1719977295871,0.51502033,3363.3,3362.1,1.88147638]
[1719977296054,0.51502033,3363.4,3362.1,1.88147638]
[1719977296259,0.51502033,3363.3,3362.1,1.88147638]
[1719977296449,0.883945,3363.4,3362.2,0.91141764]
[1719977296774,1.06500354,3363.3,3362.3,0.0594765]
[1719977297081,0.57652971,3363.3,3362.3,0.0594765]
[1719977297783,0.51502574,3363.2,3362.2,0.91141764]
[1719977298086,0.93285005,3363.2,3362.2,0.91141764]
[1719977298297,0.93285005,3363.2,3361.6,6.9219]
[1719977298298,1.48681,3362.9,3361.6,6.9219]
[1719977298442,0.515042,3362.8,3361.6,6.9219]
[1719977298784,0.02671694,3362.7,3361.6,6.9219]
[1719977298939,0.515042,3362.6,3361.6,7.61409]
[1719977299138,0.55,3362.5,3361.6,7.61409]
[1719977299372,0.57671694,3362.5,3361.6,7.61409]
[1719977299598,0.02671694,3362.5,3361.6,7.61409]
[1719977301271,0.02671694,3362.5,3361.6,6.9219]
[1719977301480,0.02671694,3362.5,3361.5,1.822]
[1719977301775,0.02671694,3362.5,3361.2,7.0664]
[1719977301975,1.51370694,3362.5,3361.2,7.0664]
[1719977302140,0.55,3362.4,3361.2,7.0664]
[1719977302475,7.293,3362.2,3361.2,7.0664]
[1719977302773,7.293,3362.2,3361.1,1.822]
[1719977303006,0.57650831,3362.1,3361.1,1.822]
[1719977303555,0.51512696,3362.0,3361.1,1.822]
[1719977303754,0.57650831,3362.1,3361.1,1.822]
[1719977303956,0.51521161,3362.0,3361.1,1.822]
[1719977304155,0.02650831,3362.0,3361.2,0.05949587]
[1719977304369,7.293,3362.2,3361.2,0.05949587]
[1719977304554,0.02646817,3361.9,3361.5,1.822]
[1719977304782,7.293,3362.2,3361.5,1.822]
[1719977305083,8.0223,3362.2,3361.5,1.822]
[1719977305286,0.02646817,3362.1,3361.5,1.822]
[1719977307000,0.02646817,3362.1,3361.1,1.822]
[1719977307621,0.02646817,3362.1,3360.9,7.36349154]
[1719977307768,0.02646817,3362.1,3361.0,1.822]
[1719977308121,0.83134499,3362.1,3361.0,2.82649435]
[1719977308600,0.55,3362.0,3361.0,2.82649435]
[1719977308802,1.06521295,3362.0,3361.0,2.82649435]
[1719977308989,0.02641734,3361.9,3361.0,1.822]
[1719977309197,0.54162967,3361.9,3361.0,1.822]
[1719977309366,7.3393,3361.7,3360.7,0.859452]
[1719977309570,7.3393,3361.7,3360.1,7.4042]
[1719977309571,2.6184027,3361.6,3360.1,7.4042]
[1719977309890,7.3393,3361.4,3360.3,1.822]
[1719977310067,0.51531462,3361.3,3360.3,1.822]
[1719977310263,0.02640664,3361.3,3360.3,1.822]
[1719977310520,0.02640664,3361.3,3360.1,7.4042]
[1719977310913,0.02640664,3361.3,3360.2,3.0]
[1719977311079,1.3679773,3361.3,3360.2,4.22262]
[1719977311466,1.4877,3360.9,3359.9,0.28421731]
[1719977311711,1.4877,3360.9,3359.0,6.9702]
[1719977311712,7.252,3360.7,3359.0,6.9702]